[Event "Gibraltar Challengers A 2019"]
[Site "Caleta"]
[Date "2019.01.22"]
[Round "2"]
[White "Spacapan, Simon"]
[Black "Adewole, Adeyinka"]
[Result "1/2-1/2"]
[ECO "B09"]
[WhiteElo "2061"]
[BlackElo "1972"]
[Annotator "NA"]
[PlyCount "208"]
[EventDate "2019.01.18"]
[EventType "swiss"]
[EventCountry "GGB"]
[SourceTitle "playchess.com"]
[Source "ChessBase"]
[SourceQuality "1"]
[TimeControl "6600+10"]

1. e4 {[%emt 0:00:00]} d6 {[%emt 0:10:09]} 2. d4 {[%emt 0:00:07]} g6 {[%emt 0:00:20]} 3. Nc3 {[%emt 0:00:18]} Bg7 {[%emt 0:00:39]} 4. f4 {[%emt 0:00:13]} Nf6 {[%emt 0:00:36]} 5. Nf3 {[%emt 0:00:15]} O-O {[%emt 0:00:17]} 6. Bd3 {[%emt 0:00:21]} c5 {[%emt 0:01:24]} 7. dxc5 {[%emt 0:00:32]} dxc5 {[%emt 0:00:23]} 8. e5 {[%emt 0:00:18]} Nd5 {[%emt 0:06:14]} 9. Nxd5 {[%emt 0:00:39]} Qxd5 {[%emt 0:00:27]} 10. Qe2 {[%emt 0:00:17]} Nc6 {[%emt 0:00:34]} 11. Be4 {[%emt 0:00:15]} Qd7 {[%emt 0:00:46]} 12. Be3 {[%emt 0:00:40]} b6 {[%emt 0:02:21]} 13. h4 {[%emt 0:01:18]} Bb7 {[%emt 0:01:44]} 14. h5 {[%emt 0:00:45]} Rfd8 {[%emt 0:01:45]} 15. hxg6 {[%emt 0:00:34]} hxg6 {[%emt 0:01:05]} 16. Ng5 {[%emt 0:00:30]} e6 {[%emt 0:04:47]} 17. c3 {[%emt 0:36:09]} Ne7 {[%emt 0:02:34]} 18. Rd1 {[%emt 0:21:41]} Qxd1+ {[%emt 0:05:05]} 19. Qxd1 {[%emt 0:00:21]} Rxd1+ {[%emt 0:00:14]} 20. Kxd1 {[%emt 0:00:03]} Rd8+ {[%emt 0:00:09]} 21. Ke2 {[%emt 0:03:25]} Bxe4 {[%emt 0:27:22]} 22. Nxe4 {[%emt 0:00:14]} Nd5 {[%emt 0:01:35]} 23. Rd1 {[%emt 0:04:38]} Ra8 {[%emt 0:05:53]} 24. c4 {[%emt 0:05:29]} Ne7 {[%emt 0:10:08]} 25. Rd7 {[%emt 0:01:20]} Kf8 {[%emt 0:01:04]} 26. Nd6 {[%emt 0:01:08]} f6 {[%emt 0:01:00]} 27. Nb5 {[%emt 0:11:04]} Ke8 {[%emt 0:06:58]} 28. Rb7 {[%emt 0:00:02]} Kd8 {[%emt 0:00:03]} 29. exf6 {[%emt 0:04:41]} Bxf6 {[%emt 0:00:21]} 30. b3 {[%emt 0:00:36]} Nc6 {[%emt 0:03:48]} 31. Rf7 {[%emt 0:01:21]} Be7 {[%emt 0:00:09]} 32. Rg7 {[%emt 0:00:47]} Kd7 {[%emt 0:01:51]} 33. Rxg6 {[%emt 0:00:43]} Rf8 {[%emt 0:00:09]} 34. Nc3 {[%emt 0:01:57]} Bd6 {[%emt 0:03:56]} 35. g3 {[%emt 0:00:42]} Rh8 {[%emt 0:01:00]} 36. Rg7+ {[%emt 0:02:00]} Be7 {[%emt 0:01:00]} 37. Ne4 {[%emt 0:02:01]} Rh2+ {[%emt 0:00:14]} 38. Bf2 {[%emt 0:00:31]} Nd4+ {[%emt 0:00:30]} 39. Kd3 {[%emt 0:00:23]} Nf5 {[%emt 0:00:59]} 40. Rg8 {[%emt 0:04:03]} Nd6 {[%emt 0:00:04]} 41. Nxd6 {[%emt 0:00:37]} Rxf2 {[%emt 0:00:08]} 42. Ne4 {[%emt 0:01:23]} Rxa2 {[%emt 0:00:03]} 43. g4 {[%emt 0:00:32]} Bd6 {[%emt 0:01:15]} 44. Rg7+ {[%emt 0:00:40]} Kc6 {[%emt 0:00:04]} 45. Nxd6 {[%emt 0:00:54]} Kxd6 {[%emt 0:00:15]} 46. g5 {[%emt 0:00:01]} Rb2 {[%emt 0:00:06]} 47. Kc3 {[%emt 0:00:01]} Rf2 {[%emt 0:00:04]} 48. Rf7 {[%emt 0:00:22]} a6 {[%emt 0:00:34]} 49. g6 {[%emt 0:00:01]} Rg2 {[%emt 0:00:08]} 50. Rf6 {[%emt 0:00:53]} Rg3+ {[%emt 0:00:08]} 51. Kc2 {[%emt 0:00:01]} Ke7 {[%emt 0:00:03]} 52. Rf7+ {[%emt 0:00:01]} Ke8 {[%emt 0:00:03]} 53. Rb7 {[%emt 0:00:25]} Rxg6 {[%emt 0:00:47]} 54. Rxb6 {[%emt 0:00:02]} Kd7 {[%emt 0:00:05]} 55. Rxa6 {[%emt 0:00:17]} Rf6 {[%emt 0:00:08]} 56. Ra7+ {[%emt 0:00:24]} Kd6 {[%emt 0:00:02]} 57. Ra6+ {[%emt 0:00:01]} Kd7 {[%emt 0:00:02]} 58. Ra5 {[%emt 0:00:25]} Kc6 {[%emt 0:01:06]} 59. Ra6+ {[%emt 0:00:06]} Kb7 {[%emt 0:00:02]} 60. Rd6 {[%emt 0:00:20]} Kc7 {[%emt 0:00:01]} 61. Ra6 {[%emt 0:00:01]} Kd7 {[%emt 0:00:04]} 62. Ra5 {[%emt 0:00:05]} Kc6 {[%emt 0:00:05]} 63. Ra6+ {[%emt 0:00:01]} Kc7 {[%emt 0:00:02]} 64. Kd3 {[%emt 0:00:18]} Kb7 {[%emt 0:00:01]} 65. Rd6 {[%emt 0:00:16]} Kc7 {[%emt 0:00:02]} 66. Ra6 {[%emt 0:00:02]} Kb7 {[%emt 0:00:08]} 67. Ra5 {[%emt 0:00:11]} Rxf4 {[%emt 0:00:01]} 68. Rxc5 {[%emt 0:00:01]} Rf3+ {[%emt 0:00:03]} 69. Kc2 {[%emt 0:00:05]} Re3 {[%emt 0:00:02]} 70. Rg5 {[%emt 0:00:29]} Kc6 {[%emt 0:00:09]} 71. Rh5 {[%emt 0:00:06]} Kd6 {[%emt 0:00:12]} 72. Rb5 {[%emt 0:00:06]} Kc6 {[%emt 0:00:02]} 73. Kd2 {[%emt 0:00:01]} Rh3 {[%emt 0:00:07]} 74. b4 {[%emt 0:00:15]} Ra3 {[%emt 0:00:04]} 75. Re5 {[%emt 0:00:08]} Kd6 {[%emt 0:00:02]} 76. Re3 {[%emt 0:00:13]} Ra2+ {[%emt 0:00:17]} 77. Kd3 {[%emt 0:00:09]} e5 {[%emt 0:00:06]} 78. Ke4 {[%emt 0:00:14]} Rb2 {[%emt 0:00:16]} 79. Rd3+ {[%emt 0:00:12]} Kc6 {[%emt 0:00:06]} 80. Kxe5 {[%emt 0:00:28]} Rxb4 {[%emt 0:00:02]} 81. Kd4 {[%emt 0:00:01]} Rb8 {[%emt 0:00:04]} 82. Rg3 {[%emt 0:00:17]} Rd8+ {[%emt 0:00:04]} 83. Kc3 {[%emt 0:00:06]} Rd1 {[%emt 0:00:03]} 84. Re3 {[%emt 0:00:14]} Rc1+ {[%emt 0:00:04]} 85. Kd4 {[%emt 0:00:01]} Rd1+ {[%emt 0:00:02]} 86. Kc3 {[%emt 0:00:10]} Rc1+ {[%emt 0:00:06]} 87. Kb3 {[%emt 0:00:01]} Kc5 {[%emt 0:00:06]} 88. Re5+ {[%emt 0:00:04]} Kc6 {[%emt 0:00:08]} 89. Rg5 {[%emt 0:00:26]} Rd1 {[%emt 0:00:09]} 90. Kc2 {[%emt 0:00:07]} Rd4 {[%emt 0:00:03]} 91. Kc3 {[%emt 0:00:01]} Rd1 {[%emt 0:00:02]} 92. Rg3 {[%emt 0:00:28]} Kc5 {[%emt 0:00:02]} 93. Rg5+ {[%emt 0:00:01]} Kc6 {[%emt 0:00:01]} 94. Kb4 {[%emt 0:00:04]} Rb1+ {[%emt 0:00:02]} 95. Kc3 {[%emt 0:00:05]} Rc1+ {[%emt 0:00:02]} 96. Kd3 {[%emt 0:00:02]} Rd1+ {[%emt 0:00:02]} 97. Kc2 {[%emt 0:00:14]} Rd4 {[%emt 0:00:02]} 98. Kb3 {[%emt 0:00:08]} Rd1 {[%emt 0:00:04]} 99. Rg2 {[%emt 0:00:26]} Kc5 {[%emt 0:00:06]} 100. Rg5+ {[%emt 0:00:14]} Kc6 {[%emt 0:00:02]} 101. Ka4 {[%emt 0:00:13]} Rb1 {[%emt 0:00:04]} 102. Rd5 {[%emt 0:00:06]} Rb8 {[%emt 0:00:02]} 103. Ra5 {[%emt 0:00:14]} Rb1 {[%emt 0:00:03]} 104. Rd5 {[%emt 0:00:03]} Rb8 {[%emt 0:00:03]} 1/2-1/2

[Event "Gibraltar Challengers A 2019"]
[Site "Caleta"]
[Date "2019.01.22"]
[Round "2"]
[White "Bujakevich, Aleksandr"]
[Black "Lacrosse, Marc"]
[Result "1/2-1/2"]
[ECO "C54"]
[WhiteElo "2054"]
[BlackElo "2182"]
[Annotator "NA"]
[PlyCount "78"]
[EventDate "2019.01.18"]
[EventType "swiss"]
[EventCountry "GGB"]
[SourceTitle "playchess.com"]
[Source "ChessBase"]
[SourceQuality "1"]
[TimeControl "6600+10"]

1. e4 {[%emt 0:06:32]} e5 {[%emt 0:00:00]} 2. Nf3 {[%emt 0:00:08]} Nc6 {[%emt 0:00:10]} 3. Bc4 {[%emt 0:00:16]} Bc5 {[%emt 0:00:06]} 4. c3 {[%emt 0:00:14]} Nf6 {[%emt 0:00:37]} 5. d3 {[%emt 0:00:09]} a6 {[%emt 0:01:08]} 6. Bb3 {[%emt 0:00:32]} O-O {[%emt 0:00:36] C54: Giuoco Piano: 4 c3 Nf6, main lines with 5 d4 and 5 d3} 7. Nbd2 {[%emt 0:00:46]} h6 {[%emt 0:03:24]} 8. O-O {[%emt 0:04:01]} Ba7 {[%emt 0:02:14]} 9. Re1 {[%emt 0:04:08]} Re8 {[%emt 0:04:16]} 10. Nf1 {[%emt 0:02:20]} d6 {[%emt 0:05:17]} 11. Ng3 {[%emt 0:01:22]} Be6 {[%emt 0:02:14]} 12. Bxe6 {[%emt 0:04:41]} Rxe6 {[%emt 0:03:13]} 13. d4 {[%emt 0:21:21]} Re8 {[%emt 0:22:11]} (13... d5 14. Nxe5 Nxe5 15. dxe5 Nxe4 16. Nxe4 dxe4 17. Bf4 Qxd1 18. Raxd1 {½-½ (40) McShane,L (2664)-Jones,G (2682) London 2018}) 14. d5 {[%emt 0:04:47]} Ne7 {[%emt 0:02:34]} 15. Nh4 {[%emt 0:01:11]} Kh7 $146 {[%emt 0:07:13]} ({Predecessor:} 15... Qd7 16. Qf3 Qg4 17. Nhf5 Qxf3 18. gxf3 {1-0 (51) Gimenez Menchon,C (2132)-Garcia Martin,M (1929) Mislata 2014}) 16. Qf3 {[%emt 0:07:22]} Qd7 {[%emt 0:07:47]} 17. Nhf5 {[%emt 0:14:51]} Nxf5 {[%emt 0:01:00]} 18. Nxf5 {[%emt 0:00:46]} Qd8 {[%emt 0:14:50]} 19. g4 {[%emt 0:07:59]} Ng8 {[%emt 0:03:23]} 20. g5 {[%emt 0:10:01]} g6 {[%emt 0:07:42]} 21. Nxh6 {[%emt 0:04:13]} Nxh6 {[%emt 0:00:13]} 22. gxh6 {[%emt 0:03:02]} Rf8 {[%emt 0:03:24]} 23. Kh1 {[%emt 0:06:58]} Qh4 {[%emt 0:03:10]} 24. Be3 {[%emt 0:03:51]} Bxe3 {[%emt 0:03:30]} 25. Qxe3 {[%emt 0:01:36]} f5 {[%emt 0:01:59]} 26. Qg3 {[%emt 0:00:43]} Qxh6 $15 {[%emt 0:00:47]} (26... Qh5 $17) 27. Re2 {[%emt 0:00:17]} Rf6 {[%emt 0:02:24]} 28. Rg1 {[%emt 0:00:04]} Raf8 {[%emt 0:00:22]} 29. f3 {[%emt 0:00:04]} fxe4 {[%emt 0:02:43]} 30. fxe4 {[%emt 0:00:02]} Rf3 {[%emt 0:00:40]} 31. Qg5 {[%emt 0:00:18]} Qxg5 {[%emt 0:01:08]} 32. Rxg5 {[%emt 0:00:02]} Kh6 {[%emt 0:00:44]} 33. Rg3 {[%emt 0:00:02]} Kh5 {[%emt 0:01:49]} 34. Kg2 {[%emt 0:00:22]} Rxg3+ {[%emt 0:00:14]} 35. hxg3 {[%emt 0:00:25]} Kg4 {[%emt 0:00:10]} 36. Re3 {[%emt 0:00:07]} g5 {[%emt 0:00:15]} 37. c4 {[%emt 0:00:04]} b6 {[%emt 0:00:05]} 38. Ra3 {[%emt 0:00:16]} a5 {[%emt 0:00:12]} 39. Rc3 {[%emt 0:00:07]} Rf7 {[%emt 0:00:28]} 1/2-1/2

[Event "Gibraltar Challengers A 2019"]
[Site "Caleta"]
[Date "2019.01.22"]
[Round "2"]
[White "Kozarcanin, Sead"]
[Black "Brown, David"]
[Result "1-0"]
[ECO "A07"]
[WhiteElo "2048"]
[BlackElo "1931"]
[Annotator "NA"]
[PlyCount "129"]
[EventDate "2019.01.18"]
[EventType "swiss"]
[EventCountry "GGB"]
[SourceTitle "playchess.com"]
[Source "ChessBase"]
[SourceQuality "1"]
[TimeControl "6600+10"]

1. Nf3 {[%emt 0:00:00]} Nf6 {[%emt 0:00:07]} 2. g3 {[%emt 0:00:00]} d5 {[%emt 0:00:44]} 3. d3 {[%emt 0:00:18]} c6 {[%emt 0:01:01]} 4. Bg2 {[%emt 0:00:07]} g6 {[%emt 0:01:24]} 5. O-O {[%emt 0:00:08]} Bg7 {[%emt 0:00:03]} 6. Nbd2 {[%emt 0:00:44]} O-O {[%emt 0:00:39]} 7. e4 {[%emt 0:00:16]} dxe4 {[%emt 0:03:12]} 8. dxe4 {[%emt 0:00:02]} Na6 {[%emt 0:00:42]} 9. Qe2 {[%emt 0:05:14]} Nc5 {[%emt 0:06:01]} 10. Rd1 {[%emt 0:04:22]} Qa5 {[%emt 0:01:18]} 11. c3 {[%emt 0:06:05]} Qa6 {[%emt 0:06:46]} 12. Qxa6 {[%emt 0:00:23]} Nxa6 {[%emt 0:00:02]} 13. e5 {[%emt 0:01:56]} Ng4 {[%emt 0:16:47]} 14. Re1 {[%emt 0:04:43]} Nc5 {[%emt 0:02:12]} 15. h3 {[%emt 0:05:23]} Nh6 {[%emt 0:00:24]} 16. Bf1 {[%emt 0:07:42]} Rd8 {[%emt 0:04:51]} 17. g4 {[%emt 0:06:03]} Nd3 {[%emt 0:05:24]} 18. Re3 {[%emt 0:00:25]} Nxc1 {[%emt 0:00:53]} 19. Rxc1 {[%emt 0:00:02]} Kf8 {[%emt 0:03:13]} 20. Ne4 {[%emt 0:02:42]} Ng8 {[%emt 0:04:58]} 21. Rce1 {[%emt 0:02:55]} Bh6 {[%emt 0:16:01]} 22. g5 {[%emt 0:19:00]} Bg7 {[%emt 0:00:04]} 23. Ng3 {[%emt 0:00:33]} h5 {[%emt 0:10:41]} 24. Nd4 {[%emt 0:02:36]} Rd5 {[%emt 0:13:41]} 25. f4 {[%emt 0:04:24]} a5 {[%emt 0:05:19]} 26. Bg2 {[%emt 0:05:47]} Rd8 {[%emt 0:00:46]} 27. a4 {[%emt 0:02:08]} Ra6 {[%emt 0:02:01]} 28. Rf1 {[%emt 0:04:44]} e6 {[%emt 0:01:54]} 29. Ne4 {[%emt 0:01:42]} Ne7 {[%emt 0:00:25]} 30. Nd6 {[%emt 0:00:41]} Rb6 {[%emt 0:00:24]} 31. Rf2 {[%emt 0:01:35]} Bd7 {[%emt 0:01:19]} 32. Nc4 {[%emt 0:03:34]} Ra6 {[%emt 0:00:10]} 33. Rd2 {[%emt 0:01:46]} Nc8 {[%emt 0:00:11]} 34. Nb3 {[%emt 0:00:27]} b6 {[%emt 0:00:53]} 35. Bxc6 {[%emt 0:00:25]} Ke8 {[%emt 0:00:13]} 36. Red3 {[%emt 0:05:04]} Ra7 {[%emt 0:00:09]} 37. Kf2 {[%emt 0:03:23]} Bf8 {[%emt 0:00:04]} 38. Ke3 {[%emt 0:00:21]} Be7 {[%emt 0:00:39]} 39. Rxd7 {[%emt 0:00:30]} Raxd7 {[%emt 0:00:05]} 40. Bb5 {[%emt 0:01:29]} Bf8 {[%emt 0:00:10]} 41. Ke4 {[%emt 0:00:51]} Ke7 {[%emt 0:00:05]} 42. Bxd7 {[%emt 0:00:51]} Rxd7 {[%emt 0:00:01]} 43. Rxd7+ {[%emt 0:00:22]} Kxd7 {[%emt 0:00:02]} 44. Nd4 {[%emt 0:00:25]} Bc5 {[%emt 0:00:11]} 45. Nc2 {[%emt 0:00:09]} Kc6 {[%emt 0:00:20]} 46. Nd4+ {[%emt 0:00:29]} Kd7 {[%emt 0:00:18]} 47. Nb3 {[%emt 0:00:09]} Be7 {[%emt 0:00:20]} 48. Kd3 {[%emt 0:00:05]} Kc6 {[%emt 0:00:15]} 49. Nd4+ {[%emt 0:00:09]} Kc5 {[%emt 0:00:21]} 50. Nb3+ {[%emt 0:00:06]} Kc6 {[%emt 0:00:13]} 51. Ncd2 {[%emt 0:00:02]} Kd5 {[%emt 0:00:11]} 52. Ne4 {[%emt 0:00:15]} Kc6 {[%emt 0:00:08]} 53. Kc4 {[%emt 0:00:05]} Bf8 {[%emt 0:00:07]} 54. Nd4+ {[%emt 0:00:08]} Kd7 {[%emt 0:00:22]} 55. Kb5 {[%emt 0:00:27]} Kc7 {[%emt 0:00:00]} 56. Nc6 {[%emt 0:00:25]} Kd7 {[%emt 0:00:20]} 57. Nf6+ {[%emt 0:00:20]} Kc7 {[%emt 0:00:10]} 58. b4 {[%emt 0:00:04]} axb4 {[%emt 0:00:02]} 59. cxb4 {[%emt 0:00:03]} Kb7 {[%emt 0:00:11]} 60. Nd8+ {[%emt 0:00:07]} Kc7 {[%emt 0:00:12]} 61. Nxf7 {[%emt 0:00:07]} Na7+ {[%emt 0:00:08]} 62. Kc4 {[%emt 0:00:03]} Nc6 {[%emt 0:00:12]} 63. Ne4 {[%emt 0:00:19]} Bxb4 {[%emt 0:00:09]} 64. Nh8 {[%emt 0:00:05]} Be1 {[%emt 0:00:20]} 65. Nxg6 {[%emt 0:00:04]} 1-0

[Event "Gibraltar Challengers A 2019"]
[Site "Caleta"]
[Date "2019.01.22"]
[Round "2"]
[White "Lung, Liviu-Catalin"]
[Black "Obiamiwe, Paul"]
[Result "1/2-1/2"]
[ECO "C84"]
[WhiteElo "2036"]
[BlackElo "1903"]
[Annotator "NA"]
[PlyCount "78"]
[EventDate "2019.01.18"]
[EventType "swiss"]
[EventCountry "GGB"]
[SourceTitle "playchess.com"]
[Source "ChessBase"]
[SourceQuality "1"]
[TimeControl "6600+10"]

1. e4 {[%emt 0:00:00]} e5 {[%emt 0:09:33]} 2. Nf3 {[%emt 0:00:07]} Nc6 {[%emt 0:00:04]} 3. Bb5 {[%emt 0:00:08]} a6 {[%emt 0:00:05]} 4. Ba4 {[%emt 0:00:06]} Nf6 {[%emt 0:00:04]} 5. d4 {[%emt 0:00:06]} b5 {[%emt 0:02:52]} 6. Bb3 {[%emt 0:00:07]} exd4 {[%emt 0:10:43]} 7. O-O {[%emt 0:08:54]} Be7 {[%emt 0:00:32]} 8. e5 {[%emt 0:01:30]} Ne4 {[%emt 0:06:14]} 9. Nxd4 {[%emt 0:09:22] C84: Closed Ruy Lopez: Unusual White 6th moves} (9. Bd5 Nc5 {Predecessor:} 10. Nxd4 Bb7 11. Nf5 (11. Bf4 Nxd4 12. Bxb7 Nxb7 13. Qxd4 Nc5 14. Qd5 O-O 15. Nc3 c6 16. Qd2 f6 17. Rad1 fxe5 18. Bxe5 {1-0 (38) Dominguez Luzon,F (2006)-Anton Caturla,S (1855) Spain 2011}) 11... Bf8 12. Nc3 g6 13. Nh6 Bxh6 14. Bxh6 Ne6 15. Ne4 Qh4 16. Nf6+ Ke7 17. Bxe6 Nxe5 18. Bd5 Kxf6 19. Bxb7 {1-0 (32) Grischuk,A (2737)-Nepomniachtchi,I (2767) Doha 2016}) 9... Nc5 {[%emt 0:09:48]} 10. Nxc6 $146 {[%emt 0:15:09]} dxc6 {[%emt 0:01:12]} 11. Qf3 {[%emt 0:01:11]} Nxb3 {[%emt 0:01:06]} 12. axb3 {[%emt 0:00:08]} Qd5 {[%emt 0:02:06]} 13. Qg3 {[%emt 0:01:13]} Bb7 {[%emt 0:03:15]} 14. Nc3 {[%emt 0:03:27]} Qe6 {[%emt 0:00:51]} 15. Bg5 {[%emt 0:07:30]} O-O {[%emt 0:15:29]} 16. Ne4 {[%emt 0:04:45]} c5 {[%emt 0:03:40]} 17. Bf6 {[%emt 0:01:44]} Bxf6 {[%emt 0:01:54]} 18. exf6 {[%emt 0:00:19]} g6 {[%emt 0:00:25]} 19. Nxc5 {[%emt 0:01:39]} Qc6 {[%emt 0:01:15]} 20. Nxb7 {[%emt 0:04:11]} Qxb7 {[%emt 0:01:01]} 21. Qg5 {[%emt 0:00:12]} Qc6 {[%emt 0:00:28]} 22. Rae1 {[%emt 0:00:23]} Rfe8 {[%emt 0:02:17]} 23. Re3 {[%emt 0:02:58]} h6 {[%emt 0:07:26]} 24. Qf4 $14 {[%emt 0:06:11]} g5 {[%emt 0:05:09]} 25. Qf5 {[%emt 0:08:53]} Re6 {[%emt 0:01:25]} 26. Rxe6 {[%emt 0:07:47]} Qxe6 {[%emt 0:00:57]} 27. Qxe6 {[%emt 0:03:18]} fxe6 {[%emt 0:02:22]} 28. Rd1 {[%emt 0:00:32]} Kf7 {[%emt 0:01:03]} 29. Rd7+ {[%emt 0:00:05]} Kxf6 {[%emt 0:00:06]} 30. Rxc7 {[%emt 0:00:06]} Rd8 {[%emt 0:00:35]} 31. Kf1 {[%emt 0:00:58]} Rd1+ {[%emt 0:00:55]} 32. Ke2 {[%emt 0:00:01]} Rb1 {[%emt 0:00:45]} 33. Kd2 {[%emt 0:04:17]} Rf1 {[%emt 0:00:49]} 34. Ke2 {[%emt 0:00:53]} Rb1 {[%emt 0:00:02]} 35. Kf3 {[%emt 0:05:31]} h5 {[%emt 0:03:28]} 36. h3 {[%emt 0:01:49]} Rxb2 {[%emt 0:01:04]} 37. Ke4 {[%emt 0:01:40]} Rb1 {[%emt 0:00:42]} 38. Rc6 {[%emt 0:01:21]} Re1+ {[%emt 0:01:00]} 39. Kf3 {[%emt 0:00:50]} Ra1 {[%emt 0:00:08]} 1/2-1/2

[Event "Gibraltar Challengers A 2019"]
[Site "Caleta"]
[Date "2019.01.22"]
[Round "2"]
[White "Sedgwick, David"]
[Black "Hestvik, Elias"]
[Result "1/2-1/2"]
[ECO "C22"]
[WhiteElo "2024"]
[BlackElo "1740"]
[Annotator "NA"]
[PlyCount "99"]
[EventDate "2019.01.18"]
[EventType "swiss"]
[EventCountry "GGB"]
[SourceTitle "playchess.com"]
[Source "ChessBase"]
[SourceQuality "1"]
[TimeControl "6600+10"]

1. e4 {[%emt 0:00:00]} e5 {[%emt 0:02:42]} 2. d4 {[%emt 0:01:08]} exd4 {[%emt 0:00:07]} 3. Qxd4 {[%emt 0:00:25]} Nc6 {[%emt 0:00:08]} 4. Qe3 {[%emt 0:00:18]} Bb4+ {[%emt 0:01:52]} 5. Bd2 {[%emt 0:00:49]} Qe7 {[%emt 0:03:11]} 6. Nc3 {[%emt 0:01:19]} Nf6 {[%emt 0:01:39]} 7. O-O-O {[%emt 0:02:34]} O-O {[%emt 0:03:18]} 8. Bd3 {[%emt 0:02:05]} Re8 {[%emt 0:02:44]} 9. Nd5 {[%emt 0:03:38]} Bxd2+ {[%emt 0:02:00]} 10. Qxd2 {[%emt 0:00:19]} Nxd5 {[%emt 0:01:35]} 11. exd5 {[%emt 0:00:14]} Ne5 {[%emt 0:00:30]} 12. Nf3 {[%emt 0:02:45]} d6 {[%emt 0:04:42]} 13. Nxe5 {[%emt 0:03:10]} dxe5 {[%emt 0:00:18]} 14. Rhe1 {[%emt 0:00:56]} Bg4 {[%emt 0:09:14]} 15. f3 {[%emt 0:01:48]} Bh5 {[%emt 0:01:07]} 16. Qc3 {[%emt 0:07:31]} a6 {[%emt 0:05:47]} 17. Kb1 {[%emt 0:09:17]} Bg6 {[%emt 0:10:15]} 18. Bxg6 {[%emt 0:05:11]} hxg6 {[%emt 0:00:27]} 19. f4 {[%emt 0:01:19]} e4 {[%emt 0:01:16]} 20. Qe3 {[%emt 0:03:05]} Rad8 {[%emt 0:06:19]} 21. h4 {[%emt 0:00:26]} Qxh4 {[%emt 0:02:40]} 22. Rh1 {[%emt 0:00:21]} Rxd5 {[%emt 0:00:29]} 23. Rc1 {[%emt 0:06:13]} Qg4 {[%emt 0:01:25]} 24. Qb3 {[%emt 0:07:01]} Rb5 {[%emt 0:04:00]} 25. Qc3 {[%emt 0:01:30]} c6 {[%emt 0:03:35]} 26. a4 {[%emt 0:03:26]} Rh5 {[%emt 0:04:11]} 27. Rhe1 {[%emt 0:01:14]} Qxf4 {[%emt 0:04:08]} 28. Qb3 {[%emt 0:01:05]} Qc7 {[%emt 0:02:14]} 29. Re2 {[%emt 0:02:14]} b5 {[%emt 0:02:27]} 30. Rf1 {[%emt 0:01:05]} Qd7 {[%emt 0:03:35]} 31. Ref2 {[%emt 0:01:26]} Rd5 {[%emt 0:05:53]} 32. Rxf7 {[%emt 0:02:23]} Qxf7 {[%emt 0:00:14]} 33. Rxf7 {[%emt 0:00:09]} Kxf7 {[%emt 0:00:05]} 34. axb5 {[%emt 0:00:40]} axb5 {[%emt 0:01:00]} 35. c4 {[%emt 0:01:16]} bxc4 {[%emt 0:03:02]} 36. Qb7+ {[%emt 0:00:25]} Re7 {[%emt 0:05:17]} 37. Qxc6 {[%emt 0:00:35]} Rde5 {[%emt 0:01:51]} 38. Qxc4+ {[%emt 0:00:15]} R5e6 {[%emt 0:00:29]} 39. Kc1 {[%emt 0:02:54]} e3 {[%emt 0:02:29]} 40. Kd1 {[%emt 0:01:28]} e2+ {[%emt 0:02:11]} 41. Ke1 {[%emt 0:00:06]} Re8 {[%emt 0:01:42]} 42. Qd5 {[%emt 0:01:52]} Kg8 {[%emt 0:02:25]} 43. g4 {[%emt 0:00:36]} g5 {[%emt 0:01:34]} 44. b4 {[%emt 0:02:17]} Kh8 {[%emt 0:00:56]} 45. Qd7 {[%emt 0:05:09]} R8e7 {[%emt 0:00:02]} 46. Qd8+ {[%emt 0:01:44]} Re8 {[%emt 0:00:02]} 47. Qd7 {[%emt 0:00:13]} R6e7 {[%emt 0:00:19]} 48. Qd5 {[%emt 0:06:15]} Re5 {[%emt 0:00:19]} 49. Qd6 {[%emt 0:02:04]} R5e6 {[%emt 0:00:12]} 50. Qd7 1/2-1/2

[Event "Gibraltar Challengers A 2019"]
[Site "Caleta"]
[Date "2019.01.22"]
[Round "2"]
[White "Hassomal Daswani, Birjkumar"]
[Black "Onabogun, Kolade"]
[Result "0-1"]
[ECO "B21"]
[WhiteElo "2008"]
[BlackElo "2189"]
[Annotator "NA"]
[PlyCount "60"]
[EventDate "2019.01.18"]
[EventType "swiss"]
[EventCountry "GGB"]
[SourceTitle "playchess.com"]
[Source "ChessBase"]
[SourceQuality "1"]
[TimeControl "6600+10"]

1. e4 {[%emt 0:00:36]} c5 {[%emt 0:00:23]} 2. f4 {[%emt 0:00:11]} d5 {[%emt 0:01:35]} 3. exd5 {[%emt 0:01:17]} Qxd5 {[%emt 0:00:04]} 4. Nc3 {[%emt 0:00:39]} Qd8 {[%emt 0:00:30]} 5. Nf3 {[%emt 0:00:28]} Nc6 {[%emt 0:00:51]} 6. Bc4 {[%emt 0:00:42]} Nf6 {[%emt 0:03:53]} 7. O-O {[%emt 0:01:20]} e6 {[%emt 0:09:00]} 8. a4 {[%emt 0:01:58]} Be7 {[%emt 0:00:14]} 9. d3 {[%emt 0:00:23]} O-O {[%emt 0:00:07]} 10. Kh1 {[%emt 0:00:44]} b6 {[%emt 0:00:12]} 11. Ne5 {[%emt 0:00:50]} Bb7 {[%emt 0:00:19]} 12. Bd2 {[%emt 0:00:57]} a6 {[%emt 0:03:11]} 13. Ne2 {[%emt 0:01:46]} b5 {[%emt 0:10:36]} 14. Bb3 {[%emt 0:07:18]} Nxe5 {[%emt 0:03:18]} 15. fxe5 {[%emt 0:00:14]} Ng4 {[%emt 0:01:19]} 16. axb5 {[%emt 0:01:52]} axb5 {[%emt 0:00:13]} 17. Rxa8 {[%emt 0:00:14]} Qxa8 {[%emt 0:10:04]} 18. Nf4 {[%emt 0:00:34]} Nxe5 {[%emt 0:00:26]} 19. Qe2 {[%emt 0:01:16]} Nc6 {[%emt 0:20:02]} 20. c3 {[%emt 0:01:52]} Bd6 {[%emt 0:03:42]} 21. Nh5 {[%emt 0:01:15]} Ne5 {[%emt 0:03:03]} 22. d4 {[%emt 0:06:57]} cxd4 {[%emt 0:00:48]} 23. cxd4 {[%emt 0:00:08]} Ng6 {[%emt 0:01:53]} 24. Rxf7 {[%emt 0:10:10]} Rxf7 {[%emt 0:07:29]} 25. Qxe6 {[%emt 0:01:40]} Kh8 {[%emt 0:00:32]} 26. Kg1 {[%emt 0:02:41]} Rf8 {[%emt 0:03:28]} 27. h3 {[%emt 0:04:58]} Qa1+ {[%emt 0:01:37]} 28. Be1 {[%emt 0:00:16]} Bb4 {[%emt 0:00:21]} 29. Qd7 {[%emt 0:00:20]} Qxe1+ {[%emt 0:00:10]} 30. Kh2 {[%emt 0:00:13]} Qe7 {[%emt 0:00:07]} 0-1